fUSD/lending_fUSD_20240220
["ID","MTS","AMOUNT","RATE_DAILY","PERIOD"]
[314578762,1708432256431,-1737.85,0.000478,5]
[314578763,1708432256441,-1737.85,0.000478,5]
[314578764,1708432256451,-1737.85,0.000478,5]
[314578765,1708432256460,-1737.85,0.000478,5]
[314578766,1708432256470,-1737.85,0.000478,5]
[314578767,1708432256480,-1737.85,0.000478,5]
[314578768,1708432256489,-1737.85,0.000478,5]
[314578769,1708432256499,-1737.85,0.000478,5]
[314578770,1708432256508,-1737.85,0.000478,5]
[314578771,1708432256518,-1737.85,0.000478,5]
[314578772,1708432256528,-1737.85,0.000478,5]
[314578773,1708432256538,-1737.85,0.000478,5]
[314578774,1708432256547,-1737.85,0.000478,5]
[314578775,1708432256557,-1737.85,0.000478,5]
[314578776,1708432256578,-1737.85,0.000478,5]
[314578777,1708432256588,-1737.85,0.000478,5]
[314578778,1708432256598,-1737.85,0.000478,5]
[314578779,1708432256609,-1737.85,0.000478,5]
[314578780,1708432256619,-1737.85,0.000478,5]
[314578781,1708432256629,-206.659345,0.000478,14]
[314578782,1708432256639,-163.962284,0.000478,14]
[314578783,1708432256649,-162.05141,0.000478,14]
[314578784,1708432256660,-919.9557928,0.0004781,8]
[314578785,1708432256670,-150.0,0.00047834,30]
[314578786,1708432256680,-10000.0,0.0004786,10]
[314578787,1708432256689,-3150.968,0.0004788,26]
[314578788,1708432256699,-150.0,0.0004788,25]
[314578789,1708432256709,-52902.957563,0.0004788,30]
[314578790,1708432256720,-1330.557382,0.0004788,30]
[314578791,1708432256732,-5538.19064,0.0004788,30]
[314578792,1708432256744,-150.0,0.00047899,60]
[314578793,1708432256754,-200.0,0.000479,23]
[314578794,1708432256765,-300.0,0.000479,30]
[314578795,1708432256775,-209565.37475802,0.000479,30]
[314578796,1708432256785,-381.13785371,0.000479,23]
[314578797,1708432256795,-176.18373354,0.000479,2]
[314578798,1708432256806,-1555.77325212,0.000479,2]
[314578799,1708432256817,-731.04574347,0.000479,2]
[314578800,1708432256828,-215.47788382,0.000479,2]
[314578801,1708432256838,-194.3271446,0.000479,2]
[314578802,1708432256848,-932.50312385,0.000479,2]
[314578803,1708432256858,-545.21294482,0.000479,2]
[314578804,1708432256868,-159.424656,0.00047926,30]
[314578805,1708432256878,-166.028289,0.00047926,30]
[314578806,1708432256888,-153.000824,0.00047926,30]
[314578807,1708432256898,-212.270476,0.00047926,30]
[314578808,1708432256908,-211.258198,0.00047926,30]
[314578809,1708432256919,-211.258198,0.00047926,30]
[314578810,1708432256928,-150.0,0.00047926,30]
[314578811,1708432256938,-800.0,0.00047945,2]
[314578812,1708432256948,-500.0,0.00047945,70]
[314578813,1708432256959,-500.0,0.00047945,2]
[314578814,1708432256970,-500.0,0.00047945,2]
[314578815,1708432256979,-500.0,0.00047945,2]
[314578816,1708432256989,-500.0,0.00047945,2]
[314578817,1708432256999,-500.0,0.00047945,2]
[314578818,1708432257009,-500.0,0.00047945,2]
[314578819,1708432257019,-603.24606579,0.00047945,2]
[314578820,1708432257029,-1000.0,0.00047945,45]
[314578821,1708432257039,-450.0,0.00047945,7]
[314578822,1708432257049,-508.35998518,0.00047945,31]
[314578823,1708432257058,-551.90689055,0.0004796,13]
[314578824,1708432257068,-939.6807308,0.00047967,2]
[314578825,1708432257077,-788.4467644,0.00047967,2]
[314578826,1708432257086,-400.0,0.0004797,3]
[314578827,1708432257097,-1579.0,0.00047976,30]
[314578828,1708432257106,-200.0,0.00047987,82]
[314578829,1708432257115,-16292.80148958,0.00047997,2]
[314578830,1708432257126,-616.00000027,0.00047999,3]
[314578831,1708432257135,-100000.0,0.00048,38]
[314578832,1708432257144,-602546.29221734,0.00048,3]
[314578833,1708432257154,-3745.706047,0.00048,60]
[314578834,1708432257163,-2000.0,0.00048,30]
[314578835,1708432257173,-6079.69677864,0.00048,120]
[314578836,1708432257183,-5000.0,0.00048,120]
[314578837,1708432257192,-326.54418628,0.00048,48]
[314578838,1708432257202,-371.57512884,0.00048,30]
[314578839,1708432257211,-50000.0,0.00048,30]
[314578840,1708432257221,-255148.20639247,0.00048,120]
[314578841,1708432257357,-1176.69046004,0.00048,120]
[314578842,1708432257370,-1871.36794633,0.00048,120]
[314578843,1708432257382,-3291.39065368,0.00048,120]
[314578844,1708432257393,-25630.62041112,0.00048,120]
[314578845,1708432257405,-725.53231417,0.00048,120]
[314578846,1708432257416,-8538.64137274,0.00048,120]
[314578847,1708432257435,-1404.82155403,0.00048,120]
[314578848,1708432257446,-782.5938442,0.00048,120]
[314578849,1708432257459,-2102.7673685,0.00048,120]
[314578850,1708432257470,-821.20062515,0.00048,120]
[314578851,1708432257482,-891.51412651,0.00048,120]
[314578852,1708432257586,-1231.0,0.00035345,2]
[314578853,1708432257596,-354.49078998,0.00035616,2]
[314578854,1708432257608,-145.50921002,0.00035616,2]
[314578855,1708432257617,-1231.0,0.00038345,2]
[314578856,1708432257627,-89.80870674,0.000469,14]
[314578857,1708432257876,-6515.39641269,0.000418,4]
[314578858,1708432257910,-1231.0,0.00041345,2]
[314578859,1708432257919,-171.77867924,0.000418,4]
[314578860,1708432257931,-1426.16692038,0.000418,4]
[314578861,1708432257965,-266.09974739,0.000418,4]
[314578862,1708432257975,-61.19129326,0.000469,14]
[314578863,1708432257984,-1256.0,0.00047345,2]
[314578864,1708432257993,-7065.75461674,0.00048,120]
[314578865,1708432258003,-270.44895382,0.00048,10]
[314578866,1708432258012,-915.69058748,0.00048,120]
[314578867,1708432258024,-4084.30941252,0.00048,120]
[314578868,1708432258033,-5000.0,0.00048,120]
[314578869,1708432258043,-250.0,0.00048,60]
[314578870,1708432258052,-49012.8220079,0.00048,90]
[314578871,1708432258066,-11432.18979304,0.00048,90]
[314578872,1708432258078,-709.17,0.00048,90]
[314578873,1708432258089,-325.31628963,0.00048,90]
[314578874,1708432258212,-216.0,0.00035345,2]
[314578875,1708432258221,-216.0,0.00038345,2]
[314578876,1708432258231,-934.26842584,0.000389,2]
[314578877,1708432258241,-4.5048235,0.0004,20]
[314578878,1708432258257,-145.4951765,0.0004,20]
[314578879,1708432258268,-216.0,0.00041345,2]
[314578880,1708432258277,-286.74856268,0.0004137,20]
[314578881,1708432258286,-283.48,0.00043151,2]
[314578882,1708432258295,-1231.0,0.00044345,2]
[314578883,1708432258305,-216.0,0.00044345,2]
[314578884,1708432258314,-151.0,0.000469,14]
[314578885,1708432258324,-296.783,0.00047345,2]
[314578886,1708432258334,-1464.97537015,0.000479,2]
[314578887,1708432258350,-1355.86396541,0.000479,2]
[314578888,1708432258360,-3069.13603459,0.00048,90]
[314578891,1708433039122,-600.0,0.00024899,2]
[314578900,1708433431569,-645.33911199,0.00024899,2]
[314578901,1708433431631,-1319.73364402,0.00024899,2]
[314578902,1708433431643,-645.94704613,0.00024899,2]
[314578903,1708433431652,-184.62835549,0.000249,2]
[314578904,1708433431662,-750.0,0.00025,3]
[314578905,1708433431671,-5.87959838,0.00027,3]
[314578906,1708433431682,-520.0,0.00027,3]
[314578907,1708433431698,-274.12040162,0.00027,3]
[314578908,1708433431708,-330.22,0.00031685,2]
[314578909,1708433431718,-293.186,0.00031848,2]
[314578910,1708433431727,-250.0,0.00033426,2]
[314578911,1708433431737,-13953.59,0.00033431,2]
[314578912,1708433431746,-250.0,0.00033488,2]
[314578913,1708433431756,-295.6,0.00033508,2]
[314578914,1708433431766,-250.0,0.0003359,111]
[314578915,1708433431775,-499.99,0.0003359,2]
[314578916,1708433431785,-724.23,0.00033593,2]
[314578917,1708433431795,-6145.92,0.00033593,2]
[314578918,1708433431805,-1028.52,0.00033593,2]
[314578919,1708433431814,-180.44,0.00033602,120]
[314578921,1708433431824,-664.34,0.00033614,2]
[314578923,1708433431834,-1392.24,0.00033659,2]
[314578925,1708433431844,-158.51,0.0003367,2]
[314578927,1708433431854,-152.61,0.00033691,2]
[314578929,1708433431862,-951.16580797,0.00033696,2]
[314578931,1708433431875,-1048.83419203,0.00033696,2]
[314578933,1708433431884,-156.12703241,0.0003376,2]
[314578935,1708433431893,-309.42,0.0003376,2]
[314578937,1708433431903,-150.99,0.0003376,30]
[314578939,1708433431912,-152.61,0.00033783,2]
[314578941,1708433431921,-200.0,0.00033811,2]
[314578943,1708433431931,-152.61,0.00033875,2]
[314578945,1708433431940,-630.48792198,0.00033902,4]
[314578947,1708433431950,-156.20317491,0.00033929,4]
[314578949,1708433431959,-1008.57,0.00033929,2]
[314578952,1708433431973,-330.22,0.00033949,2]
[314578954,1708433431983,-158.51,0.00033962,2]
[314578956,1708433431992,-152.61,0.00033968,2]
[314578957,1708433432002,-152.61,0.0003406,2]
[314578958,1708433432011,-152.61,0.00034153,2]
[314578959,1708433432021,-152.61,0.00034245,2]
[314578960,1708433432030,-158.51,0.00034254,2]
[314578961,1708433432039,-3337.43,0.00034336,2]
[314578962,1708433432049,-152.61,0.00034337,2]
[314578963,1708433432058,-1000.0,0.00034416,2]
[314578964,1708433432067,-152.61,0.0003443,2]
[314578965,1708433432077,-650.20379718,0.0003451,2]
[314578966,1708433432091,-2031.966,0.00034515,2]
[314578967,1708433432100,-394.980554,0.0003452,2]
[314578968,1708433432109,-13859.134322,0.0003452,2]
[314578969,1708433432119,-150.99,0.0003452,2]
[314578970,1708433432129,-292.35,0.00034521,2]
[314578971,1708433432138,-152.61,0.00034522,2]
[314578972,1708433432148,-158.51,0.00034546,2]
[314578973,1708433432157,-152.61,0.00034615,2]
[314578974,1708433432167,-152.61,0.00034707,2]
[314578975,1708433432177,-592.470831,0.00034794,2]
[314578976,1708433432187,-20788.701483,0.00034794,2]
[314578977,1708433432196,-3235.08,0.00034794,2]
[314578978,1708433432206,-2405.72,0.00034794,2]
[314578979,1708433432215,-152.61,0.00034799,2]
[314578980,1708433432225,-158.51,0.00034838,2]
[314578981,1708433432234,-164.2,0.00034841,2]
[314578982,1708433432244,-152.61,0.00034892,2]
[314578983,1708433432254,-789.961108,0.00034931,2]
[314578984,1708433432264,-19813.93290051,0.00034931,2]
[314578985,1708433432277,-550.0,0.00034931,2]
[314578992,1708433437452,-205.0,0.00034094,2]
[314578993,1708433437461,-677.75490315,0.00034931,2]
[314578994,1708433437513,-6676.58084034,0.00034931,2]
[314578995,1708433437523,-636.45,0.00034973,2]
[314578996,1708433437534,-152.61,0.00034984,2]
[314578997,1708433437545,-19412.02931896,0.00035,7]
[314578998,1708433437556,-987.451385,0.00035068,2]
[314578999,1708433437566,-34647.835805,0.00035068,2]
[314579000,1708433437576,-152.61,0.00035077,2]
[314579001,1708433437596,-158.51,0.00035129,2]
[314579002,1708433437608,-152.61,0.00035169,2]
[314579003,1708433437618,-724.23,0.00035236,2]
[314579004,1708433437627,-152.61,0.00035262,2]
[314579005,1708433437637,-164.2,0.00035277,2]
[314579006,1708433437646,-1382.431939,0.00035342,2]
[314579007,1708433437656,-39596.61638054,0.00035342,2]
[314579008,1708433437668,-567.99743166,0.00035342,2]
[314579009,1708433437680,-1202.67270974,0.00035342,2]
[314579010,1708433437692,-2491.37892,0.00035342,2]
[314579011,1708433437704,-4648.30468506,0.00035342,2]
[314579012,1708433437714,-152.61,0.00035354,2]
[314579013,1708433437724,-1000.0,0.00035411,2]
[314579014,1708433437734,-158.51,0.00035421,2]
[314579015,1708433437743,-152.61,0.00035446,2]
[314579016,1708433437752,-41924.53436939,0.00035516,2]
[314579018,1708433437764,-284.51111494,0.00035516,2]
[314579021,1708433437783,-1007.99999868,0.00035516,2]
[314579023,1708433437794,-323.43273298,0.00035516,2]
[314579026,1708433437807,-504.21309168,0.00035516,2]
[314579254,1708433440084,-3094.39863243,0.00035516,2]
[314579256,1708433440097,-4128.63986883,0.00035516,2]
[314579258,1708433440109,-276.91951802,0.00035516,2]
[314579261,1708433440121,-305.95610146,0.00035516,2]
[314579320,1708433440843,-15736.72567159,0.00035516,2]
[314579322,1708433440852,-1307.15616308,0.00035606,8]
[314579324,1708433440861,-186.29856884,0.00035616,2]
[314579326,1708433440870,-500.0,0.00035616,2]
[314579328,1708433440879,-685.2520197,0.00035616,2]
[314579330,1708433440888,-500.0,0.00035616,2]
[314579332,1708433440897,-500.0,0.00035616,2]
[314579334,1708433440907,-500.0,0.00035616,2]
[314579336,1708433440916,-500.0,0.00035616,2]
[314579338,1708433440925,-507.63675239,0.00035616,2]
[314579340,1708433440934,-500.0,0.00035616,2]
[314579342,1708433440943,-500.0,0.00035616,2]
[314579344,1708433440952,-500.0,0.00035616,2]
[314579346,1708433440961,-500.0,0.00035616,2]
[314579348,1708433440970,-500.0,0.00035616,2]
[314579350,1708433440979,-500.0,0.00035616,2]
[314579352,1708433440988,-500.0,0.00035616,2]
[314579354,1708433440997,-500.0,0.00035616,2]
[314579356,1708433441006,-175.0,0.00035616,2]
[314579358,1708433441016,-165.83929594,0.00035616,2]
[314579360,1708433441025,-154.86,0.00035616,2]
[314579362,1708433441034,-500.0,0.00035616,2]
[314579364,1708433441043,-500.0,0.00035616,2]
[314579366,1708433441052,-500.0,0.00035616,2]
[314579368,1708433441062,-500.0,0.00035616,2]
[314579370,1708433441071,-507.27766752,0.00035616,2]
[314579372,1708433441082,-500.0,0.00035616,2]
[314579374,1708433441092,-500.0,0.00035616,2]
[314579376,1708433441102,-500.0,0.00035616,2]
[314579378,1708433441111,-500.0,0.00035616,2]
[314579380,1708433441120,-500.0,0.00035616,2]
[314579382,1708433441130,-2701.59,0.00035616,2]
[314579384,1708433441139,-500.0,0.00035616,2]
[314579386,1708433441148,-500.0,0.00035616,2]
[314579388,1708433441158,-500.0,0.00035616,2]
[314579390,1708433441167,-500.0,0.00035616,2]
[314579392,1708433441176,-500.0,0.00035616,2]
[314579394,1708433441186,-500.0,0.00035616,2]
[314579396,1708433441197,-500.0,0.00035616,2]
[314579399,1708433441207,-500.0,0.00035616,2]
[314579400,1708433441216,-500.0,0.00035616,2]
[314579403,1708433441225,-500.0,0.00035616,2]
[314579405,1708433441235,-500.0,0.00035616,2]
[314579407,1708433441244,-500.0,0.00035616,2]
[314579409,1708433441253,-500.0,0.00035616,2]
[314579411,1708433441263,-500.0,0.00035616,2]
[314579412,1708433441272,-500.0,0.00035616,2]
[314579414,1708433441281,-500.0,0.00035616,2]
[314579417,1708433441291,-524.31,0.00035616,2]
[314579419,1708433441300,-500.0,0.00035616,2]
[314579421,1708433441309,-500.0,0.00035616,2]
[314579423,1708433441318,-500.0,0.00035616,2]
[314579425,1708433441327,-249.37,0.00035616,2]
[314579427,1708433441336,-529.25,0.00035616,2]
[314579429,1708433441345,-500.0,0.00035616,2]
[314579431,1708433441354,-500.0,0.00035616,2]
[314579433,1708433441363,-500.0,0.00035616,2]
[314579435,1708433441372,-500.0,0.00035616,2]
[314579437,1708433441381,-571.1,0.00035616,2]
[314579439,1708433441391,-500.0,0.00035616,2]
[314579441,1708433441400,-500.0,0.00035616,2]
[314579443,1708433441410,-500.0,0.00035616,2]
[314579445,1708433441418,-500.0,0.00035616,2]
[314579447,1708433441428,-500.0,0.00035616,2]
[314579449,1708433441437,-500.0,0.00035616,2]
[314579450,1708433441446,-1478.57,0.00035616,2]
[314579453,1708433441455,-500.0,0.00035616,2]
[314579454,1708433441465,-610.87,0.00035616,2]
[314579456,1708433441474,-1127.73,0.00035616,2]
[314579458,1708433441483,-500.0,0.00035616,2]
[314579461,1708433441493,-500.0,0.00035616,2]
[314579463,1708433441503,-500.0,0.00035616,2]
[314579465,1708433441512,-510.54,0.00035616,2]
[314579467,1708433441521,-500.0,0.00035616,2]
[314579469,1708433441530,-500.0,0.00035616,2]
[314579471,1708433441540,-329.26327427,0.00035616,2]
[314579472,1708433441549,-500.0,0.00035616,2]
[314579473,1708433441558,-500.0,0.00035616,2]
[314579474,1708433441568,-500.0,0.00035616,2]
[314579475,1708433441577,-500.0,0.00035616,2]
[314579476,1708433441587,-500.0,0.00035616,2]
[314579477,1708433441596,-513.22438257,0.00035616,2]
[314579478,1708433441606,-500.0,0.00035616,2]
[314579479,1708433441615,-500.0,0.00035616,2]
[314579480,1708433441624,-500.0,0.00035616,2]
[314579481,1708433441633,-573.9,0.00035616,2]
[314579482,1708433441643,-500.0,0.00035616,2]
[314579484,1708433441652,-500.0,0.00035616,2]
[314579486,1708433441661,-500.0,0.00035616,2]
[314579488,1708433441670,-281.97497507,0.00035616,2]
[314579490,1708433441679,-309.21444774,0.00035616,2]
[314579492,1708433441688,-401.94,0.00035616,2]
[314579494,1708433441698,-613.54933187,0.00035616,2]
[314579495,1708433441707,-500.0,0.00035616,2]
[314579497,1708433441717,-500.0,0.00035616,2]
[314579498,1708433441726,-463.12,0.00035616,2]
[314579499,1708433441736,-500.0,0.00035616,2]
[314579500,1708433441745,-258.38,0.00035616,2]
[314579501,1708433441754,-500.0,0.00035616,2]
[314579502,1708433441764,-500.0,0.00035616,2]
[314579503,1708433441773,-500.0,0.00035616,2]
[314579504,1708433441782,-500.0,0.00035616,2]
[314579505,1708433441791,-500.0,0.00035616,2]
[314579506,1708433441802,-500.0,0.00035616,2]
[314579507,1708433441811,-500.0,0.00035616,2]
[314579508,1708433441821,-164.2,0.00035712,2]
[314579509,1708433441830,-164.1,0.00035719,2]
[314579510,1708433441839,-292.35,0.00035798,2]
[314579511,1708433441850,-1307.15616308,0.0003588,8]
[314579512,1708433441859,-400.48230267,0.0003589,2]
[314579513,1708433441870,-497.48104,0.0003589,2]
[314579514,1708433441879,-500.0,0.0003589,2]
[314579515,1708433441888,-201.18,0.0003589,2]
[314579518,1708433442088,-218.77856699,0.0003589,2]
[314579519,1708433442099,-500.0,0.0003589,2]
[314579520,1708433442109,-500.0,0.0003589,2]
[314579521,1708433442119,-500.0,0.0003589,2]
[314579522,1708433442129,-500.0,0.0003589,2]
[314579523,1708433442139,-2701.59,0.0003589,2]
[314579524,1708433442149,-500.0,0.0003589,2]
[314579525,1708433442160,-500.0,0.0003589,2]
[314579526,1708433442169,-500.0,0.0003589,2]
[314579527,1708433442179,-500.0,0.0003589,2]
[314579528,1708433442189,-500.0,0.0003589,2]
[314579529,1708433442199,-500.0,0.0003589,2]
[314579530,1708433442208,-1478.57,0.0003589,2]
[314579531,1708433442218,-1127.73,0.0003589,2]
[314579532,1708433442232,-500.0,0.0003589,2]
[314579533,1708433442257,-451.7,0.0003589,2]
[314579535,1708433442278,-500.0,0.0003589,2]
[314579536,1708433442297,-500.0,0.0003589,2]
[314579537,1708433442307,-500.0,0.0003589,2]
[314579538,1708433442316,-500.0,0.0003589,2]
[314579539,1708433442326,-500.0,0.0003589,2]
[314579540,1708433442335,-500.0,0.0003589,2]
[314579541,1708433442344,-500.0,0.0003589,2]
[314579542,1708433442353,-500.0,0.0003589,2]
[314579543,1708433442362,-500.0,0.0003589,2]
[314579544,1708433442372,-500.0,0.0003589,2]
[314579545,1708433442381,-172.71046238,0.00036,5]
[314579546,1708433442391,-1868.63682404,0.00036,7]
[314579547,1708433442400,-1307.15616308,0.0003611,8]
[314579548,1708433442409,-15423.8310075,0.0003612,30]
[314579549,1708433442422,-431.00709111,0.0003612,30]
[314579553,1708433442460,-5498.22050742,0.0003612,30]
[314579554,1708433442473,-2726.45974702,0.0003612,30]
[314579555,1708433442482,-164.2,0.00036148,2]
[314579556,1708433442491,-653.57808154,0.00036154,8]
[314579557,1708433442500,-500.0,0.00036164,2]
[314579558,1708433442509,-500.0,0.00036164,2]
[314579559,1708433442518,-500.0,0.00036164,2]
[314579560,1708433442527,-500.0,0.00036164,2]
[314579561,1708433442536,-2701.59,0.00036164,2]
[314579562,1708433442546,-500.0,0.00036164,2]
[314579563,1708433442555,-500.0,0.00036164,2]
[314579564,1708433442563,-500.0,0.00036164,2]
[314579565,1708433442574,-500.0,0.00036164,2]
[314579566,1708433442583,-1478.57,0.00036164,2]
[314579567,1708433442593,-299.39709836,0.00036164,2]
[314579568,1708433442610,-828.33290164,0.00036164,2]
[314579569,1708433442619,-500.0,0.00036164,2]
[314579570,1708433442628,-500.0,0.00036164,2]
[314579571,1708433442636,-500.0,0.00036164,2]
[314579572,1708433442645,-500.0,0.00036164,2]
[314579573,1708433442654,-500.0,0.00036164,2]
[314579574,1708433442663,-189.67,0.00036164,2]
[314579575,1708433442672,-358.62,0.00036164,2]
[314579576,1708433442682,-500.0,0.00036164,2]
[314579577,1708433442691,-497.60659623,0.00036164,2]
[314579578,1708433442700,-330.22,0.00036212,2]
[314579579,1708433442709,-653.57808154,0.00036379,9]
[314579580,1708433442718,-288.76997682,0.00036438,2]
[314579581,1708433442728,-500.0,0.00036438,2]
[314579582,1708433442737,-542.22771974,0.00036438,2]
[314579583,1708433442746,-500.0,0.00036438,2]
[314579584,1708433442755,-2701.59,0.00036438,2]
[314579585,1708433442765,-500.0,0.00036438,2]
[314579586,1708433442774,-500.0,0.00036438,2]
[314579587,1708433442783,-500.0,0.00036438,2]
[314579588,1708433442792,-500.0,0.00036438,2]
[314579589,1708433442801,-1478.57,0.00036438,2]
[314579590,1708433442810,-1127.73,0.00036438,2]
[314579591,1708433442819,-500.0,0.00036438,2]
[314579592,1708433442829,-500.0,0.00036438,2]
[314579593,1708433442838,-500.0,0.00036438,2]
[314579594,1708433442847,-198.09,0.00036438,2]
[314579595,1708433442856,-513.53902007,0.00036438,2]
[314579596,1708433442865,-500.0,0.00036438,2]
[314579597,1708433442874,-164.2,0.00036583,2]
[314579598,1708433442883,-150.0,0.000366,2]
[314579599,1708433442892,-157.67,0.00036702,2]
[314579600,1708433442901,-653.57808154,0.00036702,9]
[314579601,1708433442910,-500.0,0.00036712,2]
[314579602,1708433442919,-500.0,0.00036712,2]
[314579603,1708433442928,-2701.59,0.00036712,2]
[314579604,1708433442937,-500.0,0.00036712,2]
[314579605,1708433442946,-500.0,0.00036712,2]
[314579606,1708433442955,-328.58535745,0.00036712,2]
[314579607,1708433442969,-171.41464255,0.00036712,2]
[314579608,1708433442979,-500.0,0.00036712,2]
[314579609,1708433442987,-1478.57,0.00036712,2]
[314579610,1708433442997,-1127.73,0.00036712,2]
[314579611,1708433443006,-164.52503555,0.00036712,2]
[314579612,1708433443022,-335.47496445,0.00036712,2]
[314579613,1708433443031,-389.03682964,0.00036712,2]
[314579614,1708433443042,-110.96317036,0.00036712,2]
[314579615,1708433443051,-189.59827306,0.00036712,2]
[314579616,1708433443065,-310.40172694,0.00036712,2]
[314579617,1708433443076,-500.0,0.00036712,2]
[314579618,1708433443088,-653.57808154,0.00036788,9]
[314579619,1708433443097,-57.94893845,0.00036798,2]
[314579620,1708433443118,-7176.20342044,0.00036798,2]
[314579621,1708433443127,-653.57808154,0.00036861,10]
[314579622,1708433443136,-7234.15235889,0.00036871,2]
[314579623,1708433443145,-724.23,0.0003688,2]
[314579624,1708433443154,-653.57808154,0.00036976,10]
[314579625,1708433443165,-500.0,0.00036986,2]
[314579626,1708433443174,-500.0,0.00036986,2]
[314579627,1708433443183,-2701.59,0.00036986,2]
[314579628,1708433443192,-281.46,0.00036986,2]
[314579629,1708433443201,-500.0,0.00036986,2]
[314579630,1708433443210,-500.0,0.00036986,2]
[314579631,1708433443220,-500.0,0.00036986,2]
[314579632,1708433443229,-1478.57,0.00036986,2]
[314579633,1708433443239,-1127.73,0.00036986,2]
[314579634,1708433443249,-500.0,0.00036986,2]
[314579635,1708433443259,-500.0,0.00036986,2]
[314579636,1708433443269,-500.0,0.00036986,2]
[314579637,1708433443278,-500.0,0.00036986,2]
[314579638,1708433443288,-164.2,0.00037019,2]
[314579639,1708433443297,-154.23,0.00037037,2]
[314579640,1708433443307,-292.35,0.00037075,2]
[314579641,1708433443316,-176.54,0.00037125,2]
[314579642,1708433443325,-653.57808154,0.0003725,10]
[314579643,1708433443334,-500.0,0.0003726,2]
[314579644,1708433443343,-500.0,0.0003726,2]
[314579645,1708433443352,-814.83850515,0.0003726,2]
[314579646,1708433443364,-1886.75149485,0.0003726,2]
[314579647,1708433443374,-500.0,0.0003726,2]
[314579648,1708433443383,-500.0,0.0003726,2]
[314579649,1708433443392,-500.0,0.0003726,2]
[314579650,1708433443401,-1478.57,0.0003726,2]
[314579651,1708433443410,-1127.73,0.0003726,2]
[314579652,1708433443420,-500.0,0.0003726,2]
[314579653,1708433443429,-500.0,0.0003726,2]
[314579654,1708433443438,-56.94850515,0.0003726,2]
[314579655,1708433443450,-443.05149485,0.0003726,2]
[314579656,1708433443459,-500.0,0.0003726,2]
[314579657,1708433443468,-86.64430515,0.00037397,2]
[314579658,1708433443529,-78.88569485,0.00037397,2]
[314579659,1708433443538,-164.2,0.00037454,2]
[314579660,1708433443547,-653.57808154,0.00037524,10]
[314579661,1708433443557,-333.82842967,0.00037534,2]
[314579662,1708433443568,-166.17157033,0.00037534,2]
[314579663,1708433443577,-2117.19488727,0.00037534,2]
[314579664,1708433443588,-584.39511273,0.00037534,2]
[314579665,1708433443597,-500.0,0.00037534,2]
[314579666,1708433443607,-500.0,0.00037534,2]
[314579667,1708433443616,-500.0,0.00037534,2]
[314579668,1708433443625,-1478.57,0.00037534,2]
[314579669,1708433443634,-1127.73,0.00037534,2]
[314579670,1708433443643,-500.0,0.00037534,2]
[314579671,1708433443651,-500.0,0.00037534,2]
[314579672,1708433443660,-500.0,0.00037534,2]
[314579673,1708433443670,-500.0,0.00037534,2]
[314579674,1708433443679,-180.0,0.00037671,2]
[314579675,1708433443688,-571.97341258,0.00037736,2]
[314579676,1708433443697,-205.0,0.00037795,10]
[314579677,1708433443706,-500.0,0.00037808,2]
[314579678,1708433443715,-2701.59,0.00037808,2]
[314579679,1708433443724,-500.0,0.00037808,2]
[314579680,1708433443733,-500.0,0.00037808,2]